{"text_format":"1","workbook":"xlsx","n_sheets":3,"sheets":["説明","申込書","登録"],"not_rendered":{"charts":0,"images":4,"macros":1,"external_links":0,"defined_names":4,"comments":2,"pivot_tables":0},"unopened":[],"bounds":{"document_bytes":16777216,"sheet_cells":100000,"rows_first":2000,"rows_last":500,"rows_between":2000,"halvings":0,"cell_chars":16384,"cell_head_chars":4096},"cells_cut":0,"cells_raw":0,"read":"whole","date_system":"1900"}

{"sheet":"説明","index":0,"n_rows":79,"n_cols":5,"rows_kept":79,"cut":false,"hidden":false,"merged":[]}
[null,"国見台陸上競技選手権大会　申込一覧表（中学・高校・一般　兼用）"]
[]
[null,"入力のしかた",null,"※入力前に必ず読んでください。"]
[null,null,null,"このシートを印刷して，確認しながら入力して下さい。"]
["　　　説明を熟読されたら，下の「申込入力」ボタンをクリックして，入力を行って下さい。"]
[]
["１）全般"]
[null,"・背景が白いセルだけ入力できます。（色つきの部分は入力できません。）"]
[null,"・行・列の削除・挿入，セルのコピー・貼り付けを絶対にしないで下さい。"]
[null,"※禁止された操作によりデータに不具合を生じた場合は，責任を負いかねます。"]
["２）所属名・監督名・住所・電話"]
[null,"・競技者のナンバーカード，氏名，フリガナ（半角）を直接入力して下さい。"]
[null,"・監督名，住所（学校所在地），電話番号は直接入力して下さい。"]
[null,"・電話番号は，休日も連絡可能な番号（監督の携帯等）にして下さい。"]
["３）性別・ナンバーカード・競技者名・学年"]
[null,"・性別はセル右側の▼をクリックして男女どちらかを選んで下さい。"]
[null,"※性別が空欄のまま他の欄を入力してもデータが有効になりません。"]
[null,"・ナンバーカードは，前年度用を使用してください。"]
[null,"・競技者名，学年等，直接入力して下さい。"]
["４）申込種目"]
[null,"・申込種目欄（セル）右側の▼をクリックして種目リストから，種目を選択して下さい。"]
["５）記録"]
[null,"・ここで入力された記録は，番組編成の参考とします。"]
[null,"・次のような入力規則でお願いします。（数字，小数点以外は入力できません。）"]
[null,"　短距離：   12秒34　→　12.34　※１分を超える場合：1分01秒23　→　61.23"]
[null,"　長距離：2分34秒56　→　234.56（表示は 2:34.56 になります。）"]
[null,"　フィールド： 5m43　→　5.43"]
[null,"・原則として，過去１年以内の公認記録を入力して下さい。"]
[null,"・公認記録がない場合，記録欄は空欄で構いません。練習時の記録を入れたい場合は，"]
[null,"　次のように換算して入力して下さい。（公認記録優先のため）"]
[null,"　短距離：小数以下切り上げ・・・・・13秒1　→　14秒0"]
[null,"　長距離：10秒以下切り上げ・・・・5分41秒　→　5分50秒"]
[null,"　フィールド：10cm以下切り捨て・・・4ｍ39　→　4ｍ30"]
["６）リレー"]
[null,"・リレーメンバーは，リレー申込欄（K列とL列）で▼をクリックして，○またはＡ～"]
[null,"　Ｆを選びます。（１チームだけのときは○，２チーム以上の場合はＡ～Ｆ）"]
[null,"・リレーの記録は，個人種目の記録と同じ要領で入力します。"]
["７）申込書の印刷・郵送・参加料の送金"]
[null,"・申込書シートの上部にある［印刷］ボタンを左クリックし，印刷して下さい。"]
[null,"・日付と代表者名を入力（手書き，ゴム印も可）し，捺印して郵送して下さい。"]
[null,"・参加料は申込と同時にお支払い（郵便局振込）下さい。"]
[null,"　（振込はゆうちょ銀行ｲﾝﾀｰﾈｯﾄ振込を利用すると自宅や職場から振込できます。）"]
["８）申込データの送信"]
[null,"ア）メールを自動作成する場合（推奨）"]
[null,"※メールを送信可能なコンピュータで作業しているときだけ，この操作が可能です。"]
[null,"　（インターネットに接続し，メールソフトを使用可能な場合のみ）"]
[null,"・申込書シート上部の［送信用データ作成］ボタンを左クリックします。"]
[null,"・メールを送信可能なパソコンの場合は，「申込メールを自動作成しますか？」と"]
[null,"　いうメッセージが出たとき，「はい」を選ぶと，申込データを添付したメールを"]
[null,"　自動的に作成します。（宛先，件名，添付ファイルを自動的に設定）"]
[null,"・メールソフトの「送信トレイ」にメールが自動作成されますので，これを送信し"]
[null,"　て下さい。（必要に応じてメール本文にメッセージを入力して下さい。）"]
[null,"※メールを自動作成できなかった場合は，下記の説明に従って，保存されたデータ"]
[null,"　をメールに添付・送信して下さい。"]
[null,"イ）メールソフトを使って別途メールを作成する場合"]
[null,"・「申込メールを自動作成しますか？」で，「いいえ」を選びます。"]
[null,"・入力用ファイルと同じフォルダに，送信用ファイルが作成されます。"]
[null,"・送信用ファイルは，大会名・所属略称・区分名（中）からなるCSVファイルです。"]
[null,"　例：青嶺中学校の場合（略名⇒青嶺中　：　青嶺中.CSV　）で保存されます。"]
[null,"（画面にもファイル名が表示されますので，必ずご確認下さい。）"]
[null,"・送信用ファイルをメールに添付して，要項記載のアドレスへ送信します。"]
[null,null,"seireij1@gmail.com",null,"　　　(伊万里市陸上競技協会：松本）"]
[null,"※このファイル（国見台陸上ｶｰﾆﾊﾞﾙ申込一覧表.xls）を"]
[null,"　そのまま添付せず，学校名のついた送信用ファイルを送信します。"]
[null,"※送信用ファイルのファイル名を変更しないで下さい。"]
[]
["　※ボタンをクリックしても変化がない場合は，マクロが無効になっています。"]
["　　下の説明を読んで，対処して下さい。"]
["　＊マクロが無効になる原因"]
["　１）　ＥＸＣＥＬのセキュリティレベルが「高」になっている。"]
[null,"解決方法"]
[null,"ＥＸＣＥＬ上部のメニューから，「ツール(T)」－「マクロ(M)」－「セキュリティ(S)」"]
[null,"の順にメニューを開き，「セキュリティレベル」を開きます。"]
[null,"「セキュリティレベル」の設定を「中」にして下さい。"]
[]
["　２）　ファイルを開くとき「マクロを無効にする」を選んだ。"]
[null,"解決方法"]
[null,"ファイルを開くとき，マクロウイルスに関する警告画面が表示されます。"]
[null,"このとき「マクロを有効にする」を選択します。"]

{"sheet":"申込書","index":1,"n_rows":133,"n_cols":23,"rows_kept":133,"cut":false,"hidden":true,"merged":[[10,1,11,1],[10,2,11,2],[12,1,13,1],[12,2,13,2],[46,1,47,1],[132,1,133,1],[132,2,133,2],[124,1,125,1],[124,2,125,2],[126,1,127,1],[126,2,127,2],[130,1,131,1],[130,2,131,2],[42,1,42,3],[122,1,123,1],[122,2,123,2],[114,1,115,1],[114,2,115,2],[116,1,117,1],[116,2,117,2],[44,2,45,2],[40,1,40,3],[41,1,41,3],[54,1,55,1],[2,8,3,12],[36,7,37,7],[4,2,4,5],[32,7,33,7],[34,7,35,7],[28,7,29,7],[30,7,31,7],[32,5,33,5],[32,6,33,6],[24,7,25,7],[28,6,29,6],[30,6,31,6],[22,7,23,7],[18,7,19,7],[18,2,19,2],[20,2,21,2],[26,7,27,7],[20,7,21,7],[8,7,9,7],[34,0,35,0],[34,5,35,5],[34,6,35,6],[36,0,37,0],[36,5,37,5],[36,6,37,6],[36,1,37,1],[36,2,37,2],[34,1,35,1],[34,2,35,2],[32,0,33,0],[30,1,31,1],[30,2,31,2],[26,1,27,1],[26,2,27,2],[32,1,33,1],[32,2,33,2],[28,0,29,0],[28,5,29,5],[28,1,29,1],[28,2,29,2],[30,0,31,0],[30,5,31,5],[24,0,25,0],[24,5,25,5],[24,6,25,6],[26,0,27,0],[26,5,27,5],[26,6,27,6],[24,1,25,1],[24,2,25,2],[22,0,23,0],[22,5,23,5],[22,6,23,6],[20,0,21,0],[20,5,21,5],[20,6,21,6],[22,1,23,1],[22,2,23,2],[20,1,21,1],[18,0,19,0],[18,5,19,5],[18,6,19,6],[16,0,17,0],[16,5,17,5],[16,6,17,6],[16,1,17,1],[16,2,17,2],[18,1,19,1],[2,0,3,1],[2,6,3,7],[6,0,7,0],[6,5,7,5],[6,6,7,6],[6,7,7,7],[6,3,6,4],[7,3,7,4],[6,2,7,2],[12,5,13,5],[12,6,13,6],[14,1,15,1],[14,2,15,2],[16,7,17,7],[4,0,4,1],[4,6,4,7],[8,5,9,5],[8,6,9,6],[10,0,11,0],[10,5,11,5],[10,6,11,6],[10,7,11,7],[8,0,9,0],[50,1,51,1],[50,2,51,2],[44,7,45,7],[46,0,47,0],[46,5,47,5],[46,6,47,6],[46,7,47,7],[44,0,45,0],[44,5,45,5],[44,6,45,6],[8,1,9,1],[8,2,9,2],[12,7,13,7],[14,0,15,0],[14,5,15,5],[14,6,15,6],[14,7,15,7],[12,0,13,0],[48,7,49,7],[50,0,51,0],[50,5,51,5],[50,6,51,6],[50,7,51,7],[48,0,49,0],[48,5,49,5],[48,6,49,6],[42,10,42,11],[40,0,42,0],[44,1,45,1],[48,1,49,1],[48,2,49,2],[40,5,40,6],[41,5,41,6],[42,5,42,6],[46,2,47,2],[52,7,53,7],[54,0,55,0],[54,5,55,5],[54,6,55,6],[54,7,55,7],[52,0,53,0],[52,5,53,5],[52,6,53,6],[56,7,57,7],[52,1,53,1],[52,2,53,2],[54,2,55,2],[58,0,59,0],[58,5,59,5],[58,6,59,6],[58,7,59,7],[56,0,57,0],[56,5,57,5],[56,6,57,6],[58,1,59,1],[58,2,59,2],[56,1,57,1],[56,2,57,2],[60,5,61,5],[60,6,61,6],[60,1,61,1],[60,2,61,2],[62,1,63,1],[62,2,63,2],[66,1,67,1],[66,2,67,2],[64,1,65,1],[64,2,65,2],[60,7,61,7],[62,0,63,0],[62,5,63,5],[62,6,63,6],[62,7,63,7],[60,0,61,0],[70,1,71,1],[70,2,71,2],[64,7,65,7],[66,0,67,0],[66,5,67,5],[66,6,67,6],[66,7,67,7],[64,0,65,0],[64,5,65,5],[64,6,65,6],[68,7,69,7],[70,0,71,0],[70,5,71,5],[70,6,71,6],[70,7,71,7],[68,0,69,0],[68,5,69,5],[68,6,69,6],[68,1,69,1],[68,2,69,2],[74,1,75,1],[74,2,75,2],[72,7,73,7],[72,0,73,0],[72,5,73,5],[72,6,73,6],[72,1,73,1],[72,2,73,2],[74,7,75,7],[76,0,77,0],[76,5,77,5],[76,6,77,6],[76,7,77,7],[74,0,75,0],[74,5,75,5],[74,6,75,6],[76,1,77,1],[76,2,77,2],[78,5,79,5],[78,6,79,6],[78,1,79,1],[78,2,79,2],[80,1,81,1],[80,2,81,2],[84,1,85,1],[84,2,85,2],[82,1,83,1],[82,2,83,2],[78,7,79,7],[80,0,81,0],[80,5,81,5],[80,6,81,6],[80,7,81,7],[78,0,79,0],[88,1,89,1],[88,2,89,2],[82,7,83,7],[84,0,85,0],[84,5,85,5],[84,6,85,6],[84,7,85,7],[82,0,83,0],[82,5,83,5],[82,6,83,6],[86,7,87,7],[88,0,89,0],[88,5,89,5],[88,6,89,6],[88,7,89,7],[86,0,87,0],[86,5,87,5],[86,6,87,6],[86,1,87,1],[86,2,87,2],[90,5,91,5],[90,6,91,6],[92,1,93,1],[92,2,93,2],[90,1,91,1],[90,2,91,2],[94,1,95,1],[94,2,95,2],[98,0,99,0],[98,5,99,5],[98,6,99,6],[100,1,101,1],[100,2,101,2],[96,1,97,1],[96,2,97,2],[90,7,91,7],[92,0,93,0],[92,5,93,5],[92,6,93,6],[92,7,93,7],[90,0,91,0],[98,1,99,1],[98,2,99,2],[94,7,95,7],[96,0,97,0],[96,5,97,5],[96,6,97,6],[96,7,97,7],[94,0,95,0],[94,5,95,5],[94,6,95,6],[98,7,99,7],[102,7,103,7],[102,0,103,0],[102,5,103,5],[102,6,103,6],[102,1,103,1],[102,2,103,2],[100,0,101,0],[100,5,101,5],[100,6,101,6],[100,7,101,7],[104,7,105,7],[106,0,107,0],[106,5,107,5],[106,6,107,6],[106,7,107,7],[104,0,105,0],[104,5,105,5],[104,6,105,6],[108,7,109,7],[104,1,105,1],[104,2,105,2],[106,1,107,1],[106,2,107,2],[110,0,111,0],[110,5,111,5],[110,6,111,6],[110,7,111,7],[108,0,109,0],[108,5,109,5],[108,6,109,6],[110,1,111,1],[110,2,111,2],[108,1,109,1],[108,2,109,2],[112,7,113,7],[114,0,115,0],[114,5,115,5],[114,6,115,6],[114,7,115,7],[112,0,113,0],[112,5,113,5],[112,6,113,6],[112,1,113,1],[112,2,113,2],[1,0,1,12],[132,0,133,0],[132,5,133,5],[132,6,133,6],[128,7,129,7],[130,0,131,0],[120,5,121,5],[120,6,121,6],[120,1,121,1],[120,2,121,2],[116,7,117,7],[118,0,119,0],[118,5,119,5],[118,6,119,6],[118,7,119,7],[116,0,117,0],[124,5,125,5],[124,6,125,6],[120,7,121,7],[122,0,123,0],[122,5,123,5],[122,6,123,6],[122,7,123,7],[120,0,121,0],[44,17,44,18],[2,3,2,5],[3,3,3,5],[5,0,5,5],[4,10,4,12],[132,7,133,7],[128,5,129,5],[128,6,129,6],[128,1,129,1],[128,2,129,2],[116,5,117,5],[116,6,117,6],[118,1,119,1],[118,2,119,2],[130,5,131,5],[130,6,131,6],[130,7,131,7],[128,0,129,0],[124,7,125,7],[126,0,127,0],[126,5,127,5],[126,6,127,6],[126,7,127,7],[124,0,125,0]]}
[null,null,null,null,null,null,null,null,null,null,null,null,null,null,null,null,"一高男100m",null,"〇",{"$f":"IF((COUNTIF(L$9:L$38,$S1)+COUNTIF(L$45:L$134,$S1))>=8,2,IF((COUNTIF(L$9:L$38,$S1)+COUNTIF(L$45:L$134,$S1))>=4,1,0))","v":0},0,null," 月   日"]
["国見台陸上競技選手権大会　申込一覧表（中学・高校・一般　兼用）",null,null,null,null,null,null,null,null,null,null,null,null,null,null,null,"一高男5000m",null,"A",0,0,null,"2021-04-09"]
["所属名",null,"ﾌﾘｶﾞﾅ",null,null,null,"住所",null,null,null,null,null,null,null,null,null,"一高男110mH",null,"B",0,0,null,"2021-04-10"]
[null,null,"略称",null,null,null,null,null,null,null,null,null,null,null,{"$f":"IF($I$6=\"\",\"\",VLOOKUP($I$6,$Q$46:$U$49,5))","v":"・高"},null,"一高男400mH",null,"C",0,0,null,"2021-04-11"]
["監督名",null,null,null,null,null,"電話",null,null,"審判員名",null,null,null,null,{"$f":"IF($I$6=\"\",\"\",VLOOKUP($I$6,$Q$46:$U$49,3))","v":17},null,"一高男走幅跳",null,"D",0,0,null,"2021-04-12"]
["※学年・年齢は令和3年4月2日現在とする。",null,null,null,null,null,"区分",null,1,{"$f":"IF($I$6=\"\",\"\",VLOOKUP($I$6,$Q$46:$T$49,2))","v":"一般"},"１種目参加料",{"$f":"IF($I$6=\"\",\"\",VLOOKUP($I$6,$Q$46:$T$49,4))","v":800},"円",null,null,null,"一高男円盤投",null,"E",0,0,null,"2021-04-13"]
["No.","男","ﾅﾝﾊﾞｰ","ﾌﾘｶﾞﾅ (半角)",null,"学年","年齢\n一般\n直入力","種別","申込種目","申込種目","申込種目"," 4×"," 4×",null,null,null,"一高男やり投",null,"F",0,0,null,"2021-04-14"]
[null,"女",null,"競 技 者 名",null,null,null,null,"最高記録","最高記録","最高記録"," 100mR"," 400mR",null,null,null,"高校男ハンマー投",null,null,null,null,null,"2021-04-15"]
[1,null,null,null,null,null,null,"A",null,null,null,null,null,null,{"$f":"COUNTA(I9:K9)","v":0},null,"高校男砲丸投"]
[null,null,null,null,null,null,null,null,null,null,null,null,null,null,null,null,"共通男200m"]
[2,null,null,null,null,null,null,null,null,null,null,null,null,null,{"$f":"COUNTA(I11:K11)","v":0},null,"共通男400m"]
[null,null,null,null,null,null,null,null,null,null,null,null,null,null,null,null,"共通男800m"]
[3,null,null,null,null,null,null,"A",null,null,null,null,null,null,{"$f":"COUNTA(I13:K13)","v":0},null,"共通男1500m"]
[null,null,null,null,null,null,null,null,null,null,null,null,null,null,null,null,"共通男走高跳"]
[4,null,null,null,null,null,null,"A",null,null,null,null,null,null,{"$f":"COUNTA(I15:K15)","v":0},null,"共通男棒高跳"]
[null,null,null,null,null,null,null,null,null,null,null,null,null,null,null,null,"共通男三段跳"]
[5,null,null,null,null,null,null,"A",null,null,null,null,null,null,{"$f":"COUNTA(I17:K17)","v":0},null,"中学男100m"]
[null,null,null,null,null,null,null,null,null,null,null,null,null,null,null,null,"中学男110mH"]
[6,null,null,null,null,null,null,"A",null,null,null,null,null,null,{"$f":"COUNTA(I19:K19)","v":0},null,"中学男3000m"]
[null,null,null,null,null,null,null,null,null,null,null,null,null,null,null,null,"中学男走幅跳"]
[7,"女",null,null,null,null,null,"D",null,null,null,null,null,null,{"$f":"COUNTA(I21:K21)","v":0},null,"中学男砲丸投"]
[]
[8,null,null,null,null,null,null,null,null,null,null,null,null,null,{"$f":"COUNTA(I23:K23)","v":0},null,"一高女100m"]
[null,null,null,null,null,null,null,null,null,null,null,null,null,null,null,null,"一高女1500m"]
[9,null,null,null,null,null,null,"A",null,null,null,null,null,null,{"$f":"COUNTA(I25:K25)","v":0},null,"一高女5000m"]
[null,null,null,null,null,null,null,null,null,null,null,null,null,null,null,null,"一高女100mH"]
[10,null,null,null,null,null,null,"A",null,null,null,null,null,null,{"$f":"COUNTA(I27:K27)","v":0},null,"一高女400mH"]
[null,null,null,null,null,null,null,null,null,null,null,null,null,null,null,null,"一高女走幅跳"]
[11,null,null,null,null,null,null,"A",null,null,null,null,null,null,{"$f":"COUNTA(I29:K29)","v":0},null,"一高女円盤投"]
[null,null,null,null,null,null,null,null,null,null,null,null,null,null,null,null,"一高女やり投"]
[12,null,null,null,null,null,null,"A",null,null,null,null,null,null,{"$f":"COUNTA(I31:K31)","v":0},null,"高校女ハンマー投"]
[null,null,null,null,null,null,null,null,null,null,null,null,null,null,null,null,"高校女砲丸投"]
[13,null,null,null,null,null,null,"A",null,null,null,null,null,null,{"$f":"COUNTA(I33:K33)","v":0},null,"共通女200m"]
[null,null,null,null,null,null,null,null,null,null,null,null,null,null,null,null,"共通女400m"]
[14,null,null,null,null,null,null,"A",null,null,null,null,null,null,{"$f":"COUNTA(I35:K35)","v":0},null,"共通女800m"]
[null,null,null,null,null,null,null,null,null,null,null,null,null,null,null,null,"共通女3000m"]
[15,null,null,null,null,null,null,"A",null,null,null,null,null,null,{"$f":"COUNTA(I37:K37)","v":0},null,"共通女走高跳"]
[null,null,null,null,null,null,null,null,null,null,null,null,null,null,null,null,"共通女棒高跳"]
["※所属，氏名とも「フリガナ」を必ず記入のこと。",null,null,null,null,null,null,null,null,null,null,null,null,null,null,null,"中学女100m"]
["※リレー種目欄下段の記録は代表者（１名）のみ記入で良い。",null,null,null,null,null,null,null,null,null,null,null,null,null,null,null,"中学女100mH"]
["申込料","個人種目",null,null,"リレー","合計",null,null,null,"令和３年",{"$f":"TODAY()","v":"2021-03-25"},null,null,null,null,null,"中学女1500m"]
[null,{"$f":"SUM(O9:O134)","v":0},null,null,{"$f":"SUM(T1:U8)","v":0},{"$f":"SUM(B42:E42)","v":0},null,null,null,null,null,null,null,null,null,null,"中学女走幅跳"]
[null,{"$f":"B42*L6","v":0},null,null,{"$f":"E42*1200","v":0},{"$f":"B43+E43","v":0},null,null,null,"代表者",{"$f":"C5","v":0},null,"印",null,null,null,"中学女砲丸投"]
[]
[16,null,null,null,null,null,null,"D",null,null,null,null,null,null,{"$f":"COUNTA(I45:K45)","v":0},null,"№","区分表",null,"参加料","CSV"]
[null,null,null,null,null,null,null,null,null,null,null,null,null,null,null,null,1,"一般",17,800,"・高"]
[17,null,null,null,null,null,null,"D",null,null,null,null,null,null,{"$f":"COUNTA(I47:K47)","v":0},null,2,"高校",14,600,"・高"]
[null,null,null,null,null,null,null,null,null,null,null,null,null,null,null,null,3,"中学生",11,500,"・中"]
[18,null,null,null,null,null,null,"D",null,null,null,null,null,null,{"$f":"COUNTA(I49:K49)","v":0},null,4,"小学生",5,400,"・小"]
[]
[19,null,null,null,null,null,null,"D",null,null,null,null,null,null,{"$f":"COUNTA(I51:K51)","v":0}]
[]
[20,null,null,null,null,null,null,"D",null,null,null,null,null,null,{"$f":"COUNTA(I53:K53)","v":0}]
[]
[21,null,null,null,null,null,null,"D",null,null,null,null,null,null,{"$f":"COUNTA(I55:K55)","v":0}]
[]
[22,null,null,null,null,null,null,"D",null,null,null,null,null,null,{"$f":"COUNTA(I57:K57)","v":0}]
[]
[23,null,null,null,null,null,null,"D",null,null,null,null,null,null,{"$f":"COUNTA(I59:K59)","v":0}]
[]
[24,null,null,null,null,null,null,"D",null,null,null,null,null,null,{"$f":"COUNTA(I61:K61)","v":0}]
[]
[25,null,null,null,null,null,null,"D",null,null,null,null,null,null,{"$f":"COUNTA(I63:K63)","v":0}]
[]
[26,null,null,null,null,null,null,null,null,null,null,null,null,null,{"$f":"COUNTA(I65:K65)","v":0}]
[]
[27,null,null,null,null,null,null,null,null,null,null,null,null,null,{"$f":"COUNTA(I67:K67)","v":0}]
[]
[28,null,null,null,null,null,null,null,null,null,null,null,null,null,{"$f":"COUNTA(I69:K69)","v":0}]
[]
[29,null,null,null,null,null,null,null,null,null,null,null,null,null,{"$f":"COUNTA(I71:K71)","v":0}]
[]
[30,null,null,null,null,null,null,null,null,null,null,null,null,null,{"$f":"COUNTA(I73:K73)","v":0}]
[]
[31,null,null,null,null,null,null,null,null,null,null,null,null,null,{"$f":"COUNTA(I75:K75)","v":0}]
[]
[32,null,null,null,null,null,null,null,null,null,null,null,null,null,{"$f":"COUNTA(I77:K77)","v":0}]
[]
[33,null,null,null,null,null,null,null,null,null,null,null,null,null,{"$f":"COUNTA(I79:K79)","v":0}]
[]
[34,null,null,null,null,null,null,null,null,null,null,null,null,null,{"$f":"COUNTA(I81:K81)","v":0}]
[]
[35,null,null,null,null,null,null,null,null,null,null,null,null,null,{"$f":"COUNTA(I83:K83)","v":0}]
[]
[36,null,null,null,null,null,null,null,null,null,null,null,null,null,{"$f":"COUNTA(I85:K85)","v":0}]
[]
[37,null,null,null,null,null,null,null,null,null,null,null,null,null,{"$f":"COUNTA(I87:K87)","v":0}]
[]
[38,null,null,null,null,null,null,null,null,null,null,null,null,null,{"$f":"COUNTA(I89:K89)","v":0}]
[]
[39,null,null,null,null,null,null,null,null,null,null,null,null,null,{"$f":"COUNTA(I91:K91)","v":0}]
[]
[40,null,null,null,null,null,null,null,null,null,null,null,null,null,{"$f":"COUNTA(I93:K93)","v":0}]
[]
[41,null,null,null,null,null,null,null,null,null,null,null,null,null,{"$f":"COUNTA(I95:K95)","v":0}]
[]
[42,null,null,null,null,null,null,null,null,null,null,null,null,null,{"$f":"COUNTA(I97:K97)","v":0}]
[]
[43,null,null,null,null,null,null,null,null,null,null,null,null,null,{"$f":"COUNTA(I99:K99)","v":0}]
[]
[44,null,null,null,null,null,null,null,null,null,null,null,null,null,{"$f":"COUNTA(I101:K101)","v":0}]
[]
[45,null,null,null,null,null,null,null,null,null,null,null,null,null,{"$f":"COUNTA(I103:K103)","v":0}]
[]
[46,null,null,null,null,null,null,null,null,null,null,null,null,null,{"$f":"COUNTA(I105:K105)","v":0}]
[]
[47,null,null,null,null,null,null,null,null,null,null,null,null,null,{"$f":"COUNTA(I107:K107)","v":0}]
[]
[48,null,null,null,null,null,null,null,null,null,null,null,null,null,{"$f":"COUNTA(I109:K109)","v":0}]
[]
[49,null,null,null,null,null,null,null,null,null,null,null,null,null,{"$f":"COUNTA(I111:K111)","v":0}]
[]
[50,null,null,null,null,null,null,null,null,null,null,null,null,null,{"$f":"COUNTA(I113:K113)","v":0}]
[]
[51,null,null,null,null,null,null,null,null,null,null,null,null,null,{"$f":"COUNTA(I115:K115)","v":0}]
[]
[52,null,null,null,null,null,null,null,null,null,null,null,null,null,{"$f":"COUNTA(I117:K117)","v":0}]
[]
[53,null,null,null,null,null,null,null,null,null,null,null,null,null,{"$f":"COUNTA(I119:K119)","v":0}]
[]
[54,null,null,null,null,null,null,null,null,null,null,null,null,null,{"$f":"COUNTA(I121:K121)","v":0}]
[]
[55,null,null,null,null,null,null,null,null,null,null,null,null,null,{"$f":"COUNTA(I123:K123)","v":0}]
[]
[56,null,null,null,null,null,null,null,null,null,null,null,null,null,{"$f":"COUNTA(I125:K125)","v":0}]
[]
[57,null,null,null,null,null,null,null,null,null,null,null,null,null,{"$f":"COUNTA(I127:K127)","v":0}]
[]
[58,null,null,null,null,null,null,null,null,null,null,null,null,null,{"$f":"COUNTA(I129:K129)","v":0}]
[]
[59,null,null,null,null,null,null,null,null,null,null,null,null,null,{"$f":"COUNTA(I131:K131)","v":0}]
[]
[60,null,null,null,null,null,null,null,null,null,null,null,null,null,{"$f":"COUNTA(I133:K133)","v":0}]

{"sheet":"登録","index":2,"n_rows":1002,"n_cols":18,"rows_kept":1002,"cut":false,"hidden":false,"merged":[[0,0,0,6],[0,8,0,14]]}
["男子　登録シート",null,null,null,null,null,null,null,"女子　登録シート",null,null,null,null,null,null,null,"所属","所属ﾌﾘｶﾞﾅ"]
["ﾅﾝﾊﾞｰ","所属","姓","名","ｾｲ","ﾒｲ","学年",null,"ﾅﾝﾊﾞｰ","所属","姓","名","ｾｲ","ﾒｲ","学年"]
[1,"AKB４８","A","B","C","D",1,null,2,"AKB48",1,2,3,4,5]
[2,"AKB４８","E","AH","KL","SB",2,null,5,"AKB４８",2,3,4,5,6]
[3,"AKB４８","F","I","M","K",3,null,6,"AKB４８",3,4,5,6,7]
[4,"AKB４８","G","J","N","A",4,null,7,"AKB４８",4,5,6,7,8]
[530,"福岡大学","田中","紘樹","ﾀﾅｶ","ﾋﾛｷ",4,null,1816,"福岡大学","三上","真奈","ﾐｶﾐ","ﾏﾅ",2]
[541,"福岡大学","佐藤","樹","ｻﾄｳ","ﾀﾂｷ",4]
[]
[]
[]
[]
[]
[]
[]
[]
[]
[]
[]
[]
[]
[]
[]
[]
[]
[]
[]
[]
[]
[]
[]
[]
[]
[]
[]
[]
[]
[]
[]
[]
[]
[]
[]
[]
[]
[]
[]
[]
[]
[]
[]
[]
[]
[]
[]
[]
[]
[]
[]
[]
[]
[]
[]
[]
[]
[]
[]
[]
[]
[]
[]
[]
[]
[]
[]
[]
[]
[]
[]
[]
[]
[]
[]
[]
[]
[]
[]
[]
[]
[]
[]
[]
[]
[]
[]
[]
[]
[]
[]
[]
[]
[]
[]
[]
[]
[]
[]
[]
[]
[]
[]
[]
[111,null,null,null,null,null,null,null,111]
[112,null,null,null,null,null,null,null,112]
[113,null,null,null,null,null,null,null,113]
[114,null,null,null,null,null,null,null,114]
[115,null,null,null,null,null,null,null,115]
[116,null,null,null,null,null,null,null,116]
[117,null,null,null,null,null,null,null,117]
[118,null,null,null,null,null,null,null,118]
[119,null,null,null,null,null,null,null,119]
[120,null,null,null,null,null,null,null,120]
[121,null,null,null,null,null,null,null,121]
[122,null,null,null,null,null,null,null,122]
[123,null,null,null,null,null,null,null,123]
[124,null,null,null,null,null,null,null,124]
[125,null,null,null,null,null,null,null,125]
[126,null,null,null,null,null,null,null,126]
[127,null,null,null,null,null,null,null,127]
[128,null,null,null,null,null,null,null,128]
[129,null,null,null,null,null,null,null,129]
[130,null,null,null,null,null,null,null,130]
[131,null,null,null,null,null,null,null,131]
[132,null,null,null,null,null,null,null,132]
[133,null,null,null,null,null,null,null,133]
[134,null,null,null,null,null,null,null,134]
[135,null,null,null,null,null,null,null,135]
[136,null,null,null,null,null,null,null,136]
[137,null,null,null,null,null,null,null,137]
[138,null,null,null,null,null,null,null,138]
[139,null,null,null,null,null,null,null,139]
[140,null,null,null,null,null,null,null,140]
[141,null,null,null,null,null,null,null,141]
[142,null,null,null,null,null,null,null,142]
[143,null,null,null,null,null,null,null,143]
[144,null,null,null,null,null,null,null,144]
[145,null,null,null,null,null,null,null,145]
[146,null,null,null,null,null,null,null,146]
[147,null,null,null,null,null,null,null,147]
[148,null,null,null,null,null,null,null,148]
[149,null,null,null,null,null,null,null,149]
[150,null,null,null,null,null,null,null,150]
[151,null,null,null,null,null,null,null,151]
[152,null,null,null,null,null,null,null,152]
[153,null,null,null,null,null,null,null,153]
[154,null,null,null,null,null,null,null,154]
[155,null,null,null,null,null,null,null,155]
[156,null,null,null,null,null,null,null,156]
[157,null,null,null,null,null,null,null,157]
[158,null,null,null,null,null,null,null,158]
[159,null,null,null,null,null,null,null,159]
[160,null,null,null,null,null,null,null,160]
[161,null,null,null,null,null,null,null,161]
[162,null,null,null,null,null,null,null,162]
[163,null,null,null,null,null,null,null,163]
[164,null,null,null,null,null,null,null,164]
[165,null,null,null,null,null,null,null,165]
[166,null,null,null,null,null,null,null,166]
[167,null,null,null,null,null,null,null,167]
[168,null,null,null,null,null,null,null,168]
[169,null,null,null,null,null,null,null,169]
[170,null,null,null,null,null,null,null,170]
[171,null,null,null,null,null,null,null,171]
[172,null,null,null,null,null,null,null,172]
[173,null,null,null,null,null,null,null,173]
[174,null,null,null,null,null,null,null,174]
[175,null,null,null,null,null,null,null,175]
[176,null,null,null,null,null,null,null,176]
[177,null,null,null,null,null,null,null,177]
[178,null,null,null,null,null,null,null,178]
[179,null,null,null,null,null,null,null,179]
[180,null,null,null,null,null,null,null,180]
[181,null,null,null,null,null,null,null,181]
[182,null,null,null,null,null,null,null,182]
[183,null,null,null,null,null,null,null,183]
[184,null,null,null,null,null,null,null,184]
[185,null,null,null,null,null,null,null,185]
[186,null,null,null,null,null,null,null,186]
[187,null,null,null,null,null,null,null,187]
[188,null,null,null,null,null,null,null,188]
[189,null,null,null,null,null,null,null,189]
[190,null,null,null,null,null,null,null,190]
[191,null,null,null,null,null,null,null,191]
[192,null,null,null,null,null,null,null,192]
[193,null,null,null,null,null,null,null,193]
[194,null,null,null,null,null,null,null,194]
[195,null,null,null,null,null,null,null,195]
[196,null,null,null,null,null,null,null,196]
[197,null,null,null,null,null,null,null,197]
[198,null,null,null,null,null,null,null,198]
[199,null,null,null,null,null,null,null,199]
[200,null,null,null,null,null,null,null,200]
[201,null,null,null,null,null,null,null,201]
[202,null,null,null,null,null,null,null,202]
[203,null,null,null,null,null,null,null,203]
[204,null,null,null,null,null,null,null,204]
[205,null,null,null,null,null,null,null,205]
[206,null,null,null,null,null,null,null,206]
[207,null,null,null,null,null,null,null,207]
[208,null,null,null,null,null,null,null,208]
[209,null,null,null,null,null,null,null,209]
[210,null,null,null,null,null,null,null,210]
[211,null,null,null,null,null,null,null,211]
[212,null,null,null,null,null,null,null,212]
[213,null,null,null,null,null,null,null,213]
[214,null,null,null,null,null,null,null,214]
[215,null,null,null,null,null,null,null,215]
[216,null,null,null,null,null,null,null,216]
[217,null,null,null,null,null,null,null,217]
[218,null,null,null,null,null,null,null,218]
[219,null,null,null,null,null,null,null,219]
[220,null,null,null,null,null,null,null,220]
[221,null,null,null,null,null,null,null,221]
[222,null,null,null,null,null,null,null,222]
[223,null,null,null,null,null,null,null,223]
[224,null,null,null,null,null,null,null,224]
[225,null,null,null,null,null,null,null,225]
[226,null,null,null,null,null,null,null,226]
[227,null,null,null,null,null,null,null,227]
[228,null,null,null,null,null,null,null,228]
[229,null,null,null,null,null,null,null,229]
[230,null,null,null,null,null,null,null,230]
[231,null,null,null,null,null,null,null,231]
[232,null,null,null,null,null,null,null,232]
[233,null,null,null,null,null,null,null,233]
[234,null,null,null,null,null,null,null,234]
[235,null,null,null,null,null,null,null,235]
[236,null,null,null,null,null,null,null,236]
[237,null,null,null,null,null,null,null,237]
[238,null,null,null,null,null,null,null,238]
[239,null,null,null,null,null,null,null,239]
[240,null,null,null,null,null,null,null,240]
[241,null,null,null,null,null,null,null,241]
[242,null,null,null,null,null,null,null,242]
[243,null,null,null,null,null,null,null,243]
[244,null,null,null,null,null,null,null,244]
[245,null,null,null,null,null,null,null,245]
[246,null,null,null,null,null,null,null,246]
[247,null,null,null,null,null,null,null,247]
[248,null,null,null,null,null,null,null,248]
[249,null,null,null,null,null,null,null,249]
[250,null,null,null,null,null,null,null,250]
[251,null,null,null,null,null,null,null,251]
[252,null,null,null,null,null,null,null,252]
[253,null,null,null,null,null,null,null,253]
[254,null,null,null,null,null,null,null,254]
[255,null,null,null,null,null,null,null,255]
[256,null,null,null,null,null,null,null,256]
[257,null,null,null,null,null,null,null,257]
[258,null,null,null,null,null,null,null,258]
[259,null,null,null,null,null,null,null,259]
[260,null,null,null,null,null,null,null,260]
[261,null,null,null,null,null,null,null,261]
[262,null,null,null,null,null,null,null,262]
[263,null,null,null,null,null,null,null,263]
[264,null,null,null,null,null,null,null,264]
[265,null,null,null,null,null,null,null,265]
[266,null,null,null,null,null,null,null,266]
[267,null,null,null,null,null,null,null,267]
[268,null,null,null,null,null,null,null,268]
[269,null,null,null,null,null,null,null,269]
[270,null,null,null,null,null,null,null,270]
[271,null,null,null,null,null,null,null,271]
[272,null,null,null,null,null,null,null,272]
[273,null,null,null,null,null,null,null,273]
[274,null,null,null,null,null,null,null,274]
[275,null,null,null,null,null,null,null,275]
[276,null,null,null,null,null,null,null,276]
[277,null,null,null,null,null,null,null,277]
[278,null,null,null,null,null,null,null,278]
[279,null,null,null,null,null,null,null,279]
[280,null,null,null,null,null,null,null,280]
[281,null,null,null,null,null,null,null,281]
[282,null,null,null,null,null,null,null,282]
[283,null,null,null,null,null,null,null,283]
[284,null,null,null,null,null,null,null,284]
[285,null,null,null,null,null,null,null,285]
[286,null,null,null,null,null,null,null,286]
[287,null,null,null,null,null,null,null,287]
[288,null,null,null,null,null,null,null,288]
[289,null,null,null,null,null,null,null,289]
[290,null,null,null,null,null,null,null,290]
[291,null,null,null,null,null,null,null,291]
[292,null,null,null,null,null,null,null,292]
[293,null,null,null,null,null,null,null,293]
[294,null,null,null,null,null,null,null,294]
[295,null,null,null,null,null,null,null,295]
[296,null,null,null,null,null,null,null,296]
[297,null,null,null,null,null,null,null,297]
[298,null,null,null,null,null,null,null,298]
[299,null,null,null,null,null,null,null,299]
[300,null,null,null,null,null,null,null,300]
[301,null,null,null,null,null,null,null,301]
[302,null,null,null,null,null,null,null,302]
[303,null,null,null,null,null,null,null,303]
[304,null,null,null,null,null,null,null,304]
[305,null,null,null,null,null,null,null,305]
[306,null,null,null,null,null,null,null,306]
[307,null,null,null,null,null,null,null,307]
[308,null,null,null,null,null,null,null,308]
[309,null,null,null,null,null,null,null,309]
[310,null,null,null,null,null,null,null,310]
[311,null,null,null,null,null,null,null,311]
[312,null,null,null,null,null,null,null,312]
[313,null,null,null,null,null,null,null,313]
[314,null,null,null,null,null,null,null,314]
[315,null,null,null,null,null,null,null,315]
[316,null,null,null,null,null,null,null,316]
[317,null,null,null,null,null,null,null,317]
[318,null,null,null,null,null,null,null,318]
[319,null,null,null,null,null,null,null,319]
[320,null,null,null,null,null,null,null,320]
[321,null,null,null,null,null,null,null,321]
[322,null,null,null,null,null,null,null,322]
[323,null,null,null,null,null,null,null,323]
[324,null,null,null,null,null,null,null,324]
[325,null,null,null,null,null,null,null,325]
[326,null,null,null,null,null,null,null,326]
[327,null,null,null,null,null,null,null,327]
[328,null,null,null,null,null,null,null,328]
[329,null,null,null,null,null,null,null,329]
[330,null,null,null,null,null,null,null,330]
[331,null,null,null,null,null,null,null,331]
[332,null,null,null,null,null,null,null,332]
[333,null,null,null,null,null,null,null,333]
[334,null,null,null,null,null,null,null,334]
[335,null,null,null,null,null,null,null,335]
[336,null,null,null,null,null,null,null,336]
[337,null,null,null,null,null,null,null,337]
[338,null,null,null,null,null,null,null,338]
[339,null,null,null,null,null,null,null,339]
[340,null,null,null,null,null,null,null,340]
[341,null,null,null,null,null,null,null,341]
[342,null,null,null,null,null,null,null,342]
[343,null,null,null,null,null,null,null,343]
[344,null,null,null,null,null,null,null,344]
[345,null,null,null,null,null,null,null,345]
[346,null,null,null,null,null,null,null,346]
[347,null,null,null,null,null,null,null,347]
[348,null,null,null,null,null,null,null,348]
[349,null,null,null,null,null,null,null,349]
[350,null,null,null,null,null,null,null,350]
[351,null,null,null,null,null,null,null,351]
[352,null,null,null,null,null,null,null,352]
[353,null,null,null,null,null,null,null,353]
[354,null,null,null,null,null,null,null,354]
[355,null,null,null,null,null,null,null,355]
[356,null,null,null,null,null,null,null,356]
[357,null,null,null,null,null,null,null,357]
[358,null,null,null,null,null,null,null,358]
[359,null,null,null,null,null,null,null,359]
[360,null,null,null,null,null,null,null,360]
[361,null,null,null,null,null,null,null,361]
[362,null,null,null,null,null,null,null,362]
[363,null,null,null,null,null,null,null,363]
[364,null,null,null,null,null,null,null,364]
[365,null,null,null,null,null,null,null,365]
[366,null,null,null,null,null,null,null,366]
[367,null,null,null,null,null,null,null,367]
[368,null,null,null,null,null,null,null,368]
[369,null,null,null,null,null,null,null,369]
[370,null,null,null,null,null,null,null,370]
[371,null,null,null,null,null,null,null,371]
[372,null,null,null,null,null,null,null,372]
[373,null,null,null,null,null,null,null,373]
[374,null,null,null,null,null,null,null,374]
[375,null,null,null,null,null,null,null,375]
[376,null,null,null,null,null,null,null,376]
[377,null,null,null,null,null,null,null,377]
[378,null,null,null,null,null,null,null,378]
[379,null,null,null,null,null,null,null,379]
[380,null,null,null,null,null,null,null,380]
[381,null,null,null,null,null,null,null,381]
[382,null,null,null,null,null,null,null,382]
[383,null,null,null,null,null,null,null,383]
[384,null,null,null,null,null,null,null,384]
[385,null,null,null,null,null,null,null,385]
[386,null,null,null,null,null,null,null,386]
[387,null,null,null,null,null,null,null,387]
[388,null,null,null,null,null,null,null,388]
[389,null,null,null,null,null,null,null,389]
[390,null,null,null,null,null,null,null,390]
[391,null,null,null,null,null,null,null,391]
[392,null,null,null,null,null,null,null,392]
[393,null,null,null,null,null,null,null,393]
[394,null,null,null,null,null,null,null,394]
[395,null,null,null,null,null,null,null,395]
[396,null,null,null,null,null,null,null,396]
[397,null,null,null,null,null,null,null,397]
[398,null,null,null,null,null,null,null,398]
[399,null,null,null,null,null,null,null,399]
[400,null,null,null,null,null,null,null,400]
[401,null,null,null,null,null,null,null,401]
[402,null,null,null,null,null,null,null,402]
[403,null,null,null,null,null,null,null,403]
[404,null,null,null,null,null,null,null,404]
[405,null,null,null,null,null,null,null,405]
[406,null,null,null,null,null,null,null,406]
[407,null,null,null,null,null,null,null,407]
[408,null,null,null,null,null,null,null,408]
[409,null,null,null,null,null,null,null,409]
[410,null,null,null,null,null,null,null,410]
[411,null,null,null,null,null,null,null,411]
[412,null,null,null,null,null,null,null,412]
[413,null,null,null,null,null,null,null,413]
[414,null,null,null,null,null,null,null,414]
[415,null,null,null,null,null,null,null,415]
[416,null,null,null,null,null,null,null,416]
[417,null,null,null,null,null,null,null,417]
[418,null,null,null,null,null,null,null,418]
[419,null,null,null,null,null,null,null,419]
[420,null,null,null,null,null,null,null,420]
[421,null,null,null,null,null,null,null,421]
[422,null,null,null,null,null,null,null,422]
[423,null,null,null,null,null,null,null,423]
[424,null,null,null,null,null,null,null,424]
[425,null,null,null,null,null,null,null,425]
[426,null,null,null,null,null,null,null,426]
[427,null,null,null,null,null,null,null,427]
[428,null,null,null,null,null,null,null,428]
[429,null,null,null,null,null,null,null,429]
[430,null,null,null,null,null,null,null,430]
[431,null,null,null,null,null,null,null,431]
[432,null,null,null,null,null,null,null,432]
[433,null,null,null,null,null,null,null,433]
[434,null,null,null,null,null,null,null,434]
[435,null,null,null,null,null,null,null,435]
[436,null,null,null,null,null,null,null,436]
[437,null,null,null,null,null,null,null,437]
[438,null,null,null,null,null,null,null,438]
[439,null,null,null,null,null,null,null,439]
[440,null,null,null,null,null,null,null,440]
[441,null,null,null,null,null,null,null,441]
[442,null,null,null,null,null,null,null,442]
[443,null,null,null,null,null,null,null,443]
[444,null,null,null,null,null,null,null,444]
[445,null,null,null,null,null,null,null,445]
[446,null,null,null,null,null,null,null,446]
[447,null,null,null,null,null,null,null,447]
[448,null,null,null,null,null,null,null,448]
[449,null,null,null,null,null,null,null,449]
[450,null,null,null,null,null,null,null,450]
[451,null,null,null,null,null,null,null,451]
[452,null,null,null,null,null,null,null,452]
[453,null,null,null,null,null,null,null,453]
[454,null,null,null,null,null,null,null,454]
[455,null,null,null,null,null,null,null,455]
[456,null,null,null,null,null,null,null,456]
[457,null,null,null,null,null,null,null,457]
[458,null,null,null,null,null,null,null,458]
[459,null,null,null,null,null,null,null,459]
[460,null,null,null,null,null,null,null,460]
[461,null,null,null,null,null,null,null,461]
[462,null,null,null,null,null,null,null,462]
[463,null,null,null,null,null,null,null,463]
[464,null,null,null,null,null,null,null,464]
[465,null,null,null,null,null,null,null,465]
[466,null,null,null,null,null,null,null,466]
[467,null,null,null,null,null,null,null,467]
[468,null,null,null,null,null,null,null,468]
[469,null,null,null,null,null,null,null,469]
[470,null,null,null,null,null,null,null,470]
[471,null,null,null,null,null,null,null,471]
[472,null,null,null,null,null,null,null,472]
[473,null,null,null,null,null,null,null,473]
[474,null,null,null,null,null,null,null,474]
[475,null,null,null,null,null,null,null,475]
[476,null,null,null,null,null,null,null,476]
[477,null,null,null,null,null,null,null,477]
[478,null,null,null,null,null,null,null,478]
[479,null,null,null,null,null,null,null,479]
[480,null,null,null,null,null,null,null,480]
[481,null,null,null,null,null,null,null,481]
[482,null,null,null,null,null,null,null,482]
[483,null,null,null,null,null,null,null,483]
[484,null,null,null,null,null,null,null,484]
[485,null,null,null,null,null,null,null,485]
[486,null,null,null,null,null,null,null,486]
[487,null,null,null,null,null,null,null,487]
[488,null,null,null,null,null,null,null,488]
[489,null,null,null,null,null,null,null,489]
[490,null,null,null,null,null,null,null,490]
[491,null,null,null,null,null,null,null,491]
[492,null,null,null,null,null,null,null,492]
[493,null,null,null,null,null,null,null,493]
[494,null,null,null,null,null,null,null,494]
[495,null,null,null,null,null,null,null,495]
[496,null,null,null,null,null,null,null,496]
[497,null,null,null,null,null,null,null,497]
[498,null,null,null,null,null,null,null,498]
[499,null,null,null,null,null,null,null,499]
[500,null,null,null,null,null,null,null,500]
[501,null,null,null,null,null,null,null,501]
[502,null,null,null,null,null,null,null,502]
[503,null,null,null,null,null,null,null,503]
[504,null,null,null,null,null,null,null,504]
[505,null,null,null,null,null,null,null,505]
[506,null,null,null,null,null,null,null,506]
[507,null,null,null,null,null,null,null,507]
[508,null,null,null,null,null,null,null,508]
[509,null,null,null,null,null,null,null,509]
[510,null,null,null,null,null,null,null,510]
[511,null,null,null,null,null,null,null,511]
[512,null,null,null,null,null,null,null,512]
[513,null,null,null,null,null,null,null,513]
[514,null,null,null,null,null,null,null,514]
[515,null,null,null,null,null,null,null,515]
[516,null,null,null,null,null,null,null,516]
[517,null,null,null,null,null,null,null,517]
[518,null,null,null,null,null,null,null,518]
[519,null,null,null,null,null,null,null,519]
[520,null,null,null,null,null,null,null,520]
[521,null,null,null,null,null,null,null,521]
[522,null,null,null,null,null,null,null,522]
[523,null,null,null,null,null,null,null,523]
[524,null,null,null,null,null,null,null,524]
[525,null,null,null,null,null,null,null,525]
[526,null,null,null,null,null,null,null,526]
[527,null,null,null,null,null,null,null,527]
[528,null,null,null,null,null,null,null,528]
[529,null,null,null,null,null,null,null,529]
[530,null,null,null,null,null,null,null,530]
[531,null,null,null,null,null,null,null,531]
[532,null,null,null,null,null,null,null,532]
[533,null,null,null,null,null,null,null,533]
[534,null,null,null,null,null,null,null,534]
[535,null,null,null,null,null,null,null,535]
[536,null,null,null,null,null,null,null,536]
[537,null,null,null,null,null,null,null,537]
[538,null,null,null,null,null,null,null,538]
[539,null,null,null,null,null,null,null,539]
[540,null,null,null,null,null,null,null,540]
[541,null,null,null,null,null,null,null,541]
[542,null,null,null,null,null,null,null,542]
[543,null,null,null,null,null,null,null,543]
[544,null,null,null,null,null,null,null,544]
[545,null,null,null,null,null,null,null,545]
[546,null,null,null,null,null,null,null,546]
[547,null,null,null,null,null,null,null,547]
[548,null,null,null,null,null,null,null,548]
[549,null,null,null,null,null,null,null,549]
[550,null,null,null,null,null,null,null,550]
[551,null,null,null,null,null,null,null,551]
[552,null,null,null,null,null,null,null,552]
[553,null,null,null,null,null,null,null,553]
[554,null,null,null,null,null,null,null,554]
[555,null,null,null,null,null,null,null,555]
[556,null,null,null,null,null,null,null,556]
[557,null,null,null,null,null,null,null,557]
[558,null,null,null,null,null,null,null,558]
[559,null,null,null,null,null,null,null,559]
[560,null,null,null,null,null,null,null,560]
[561,null,null,null,null,null,null,null,561]
[562,null,null,null,null,null,null,null,562]
[563,null,null,null,null,null,null,null,563]
[564,null,null,null,null,null,null,null,564]
[565,null,null,null,null,null,null,null,565]
[566,null,null,null,null,null,null,null,566]
[567,null,null,null,null,null,null,null,567]
[568,null,null,null,null,null,null,null,568]
[569,null,null,null,null,null,null,null,569]
[570,null,null,null,null,null,null,null,570]
[571,null,null,null,null,null,null,null,571]
[572,null,null,null,null,null,null,null,572]
[573,null,null,null,null,null,null,null,573]
[574,null,null,null,null,null,null,null,574]
[575,null,null,null,null,null,null,null,575]
[576,null,null,null,null,null,null,null,576]
[577,null,null,null,null,null,null,null,577]
[578,null,null,null,null,null,null,null,578]
[579,null,null,null,null,null,null,null,579]
[580,null,null,null,null,null,null,null,580]
[581,null,null,null,null,null,null,null,581]
[582,null,null,null,null,null,null,null,582]
[583,null,null,null,null,null,null,null,583]
[584,null,null,null,null,null,null,null,584]
[585,null,null,null,null,null,null,null,585]
[586,null,null,null,null,null,null,null,586]
[587,null,null,null,null,null,null,null,587]
[588,null,null,null,null,null,null,null,588]
[589,null,null,null,null,null,null,null,589]
[590,null,null,null,null,null,null,null,590]
[591,null,null,null,null,null,null,null,591]
[592,null,null,null,null,null,null,null,592]
[593,null,null,null,null,null,null,null,593]
[594,null,null,null,null,null,null,null,594]
[595,null,null,null,null,null,null,null,595]
[596,null,null,null,null,null,null,null,596]
[597,null,null,null,null,null,null,null,597]
[598,null,null,null,null,null,null,null,598]
[599,null,null,null,null,null,null,null,599]
[600,null,null,null,null,null,null,null,600]
[601,null,null,null,null,null,null,null,601]
[602,null,null,null,null,null,null,null,602]
[603,null,null,null,null,null,null,null,603]
[604,null,null,null,null,null,null,null,604]
[605,null,null,null,null,null,null,null,605]
[606,null,null,null,null,null,null,null,606]
[607,null,null,null,null,null,null,null,607]
[608,null,null,null,null,null,null,null,608]
[609,null,null,null,null,null,null,null,609]
[610,null,null,null,null,null,null,null,610]
[611,null,null,null,null,null,null,null,611]
[612,null,null,null,null,null,null,null,612]
[613,null,null,null,null,null,null,null,613]
[614,null,null,null,null,null,null,null,614]
[615,null,null,null,null,null,null,null,615]
[616,null,null,null,null,null,null,null,616]
[617,null,null,null,null,null,null,null,617]
[618,null,null,null,null,null,null,null,618]
[619,null,null,null,null,null,null,null,619]
[620,null,null,null,null,null,null,null,620]
[621,null,null,null,null,null,null,null,621]
[622,null,null,null,null,null,null,null,622]
[623,null,null,null,null,null,null,null,623]
[624,null,null,null,null,null,null,null,624]
[625,null,null,null,null,null,null,null,625]
[626,null,null,null,null,null,null,null,626]
[627,null,null,null,null,null,null,null,627]
[628,null,null,null,null,null,null,null,628]
[629,null,null,null,null,null,null,null,629]
[630,null,null,null,null,null,null,null,630]
[631,null,null,null,null,null,null,null,631]
[632,null,null,null,null,null,null,null,632]
[633,null,null,null,null,null,null,null,633]
[634,null,null,null,null,null,null,null,634]
[635,null,null,null,null,null,null,null,635]
[636,null,null,null,null,null,null,null,636]
[637,null,null,null,null,null,null,null,637]
[638,null,null,null,null,null,null,null,638]
[639,null,null,null,null,null,null,null,639]
[640,null,null,null,null,null,null,null,640]
[641,null,null,null,null,null,null,null,641]
[642,null,null,null,null,null,null,null,642]
[643,null,null,null,null,null,null,null,643]
[644,null,null,null,null,null,null,null,644]
[645,null,null,null,null,null,null,null,645]
[646,null,null,null,null,null,null,null,646]
[647,null,null,null,null,null,null,null,647]
[648,null,null,null,null,null,null,null,648]
[649,null,null,null,null,null,null,null,649]
[650,null,null,null,null,null,null,null,650]
[651,null,null,null,null,null,null,null,651]
[652,null,null,null,null,null,null,null,652]
[653,null,null,null,null,null,null,null,653]
[654,null,null,null,null,null,null,null,654]
[655,null,null,null,null,null,null,null,655]
[656,null,null,null,null,null,null,null,656]
[657,null,null,null,null,null,null,null,657]
[658,null,null,null,null,null,null,null,658]
[659,null,null,null,null,null,null,null,659]
[660,null,null,null,null,null,null,null,660]
[661,null,null,null,null,null,null,null,661]
[662,null,null,null,null,null,null,null,662]
[663,null,null,null,null,null,null,null,663]
[664,null,null,null,null,null,null,null,664]
[665,null,null,null,null,null,null,null,665]
[666,null,null,null,null,null,null,null,666]
[667,null,null,null,null,null,null,null,667]
[668,null,null,null,null,null,null,null,668]
[669,null,null,null,null,null,null,null,669]
[670,null,null,null,null,null,null,null,670]
[671,null,null,null,null,null,null,null,671]
[672,null,null,null,null,null,null,null,672]
[673,null,null,null,null,null,null,null,673]
[674,null,null,null,null,null,null,null,674]
[675,null,null,null,null,null,null,null,675]
[676,null,null,null,null,null,null,null,676]
[677,null,null,null,null,null,null,null,677]
[678,null,null,null,null,null,null,null,678]
[679,null,null,null,null,null,null,null,679]
[680,null,null,null,null,null,null,null,680]
[681,null,null,null,null,null,null,null,681]
[682,null,null,null,null,null,null,null,682]
[683,null,null,null,null,null,null,null,683]
[684,null,null,null,null,null,null,null,684]
[685,null,null,null,null,null,null,null,685]
[686,null,null,null,null,null,null,null,686]
[687,null,null,null,null,null,null,null,687]
[688,null,null,null,null,null,null,null,688]
[689,null,null,null,null,null,null,null,689]
[690,null,null,null,null,null,null,null,690]
[691,null,null,null,null,null,null,null,691]
[692,null,null,null,null,null,null,null,692]
[693,null,null,null,null,null,null,null,693]
[694,null,null,null,null,null,null,null,694]
[695,null,null,null,null,null,null,null,695]
[696,null,null,null,null,null,null,null,696]
[697,null,null,null,null,null,null,null,697]
[698,null,null,null,null,null,null,null,698]
[699,null,null,null,null,null,null,null,699]
[700,null,null,null,null,null,null,null,700]
[701,null,null,null,null,null,null,null,701]
[702,null,null,null,null,null,null,null,702]
[703,null,null,null,null,null,null,null,703]
[704,null,null,null,null,null,null,null,704]
[705,null,null,null,null,null,null,null,705]
[706,null,null,null,null,null,null,null,706]
[707,null,null,null,null,null,null,null,707]
[708,null,null,null,null,null,null,null,708]
[709,null,null,null,null,null,null,null,709]
[710,null,null,null,null,null,null,null,710]
[711,null,null,null,null,null,null,null,711]
[712,null,null,null,null,null,null,null,712]
[713,null,null,null,null,null,null,null,713]
[714,null,null,null,null,null,null,null,714]
[715,null,null,null,null,null,null,null,715]
[716,null,null,null,null,null,null,null,716]
[717,null,null,null,null,null,null,null,717]
[718,null,null,null,null,null,null,null,718]
[719,null,null,null,null,null,null,null,719]
[720,null,null,null,null,null,null,null,720]
[721,null,null,null,null,null,null,null,721]
[722,null,null,null,null,null,null,null,722]
[723,null,null,null,null,null,null,null,723]
[724,null,null,null,null,null,null,null,724]
[725,null,null,null,null,null,null,null,725]
[726,null,null,null,null,null,null,null,726]
[727,null,null,null,null,null,null,null,727]
[728,null,null,null,null,null,null,null,728]
[729,null,null,null,null,null,null,null,729]
[730,null,null,null,null,null,null,null,730]
[731,null,null,null,null,null,null,null,731]
[732,null,null,null,null,null,null,null,732]
[733,null,null,null,null,null,null,null,733]
[734,null,null,null,null,null,null,null,734]
[735,null,null,null,null,null,null,null,735]
[736,null,null,null,null,null,null,null,736]
[737,null,null,null,null,null,null,null,737]
[738,null,null,null,null,null,null,null,738]
[739,null,null,null,null,null,null,null,739]
[740,null,null,null,null,null,null,null,740]
[741,null,null,null,null,null,null,null,741]
[742,null,null,null,null,null,null,null,742]
[743,null,null,null,null,null,null,null,743]
[744,null,null,null,null,null,null,null,744]
[745,null,null,null,null,null,null,null,745]
[746,null,null,null,null,null,null,null,746]
[747,null,null,null,null,null,null,null,747]
[748,null,null,null,null,null,null,null,748]
[749,null,null,null,null,null,null,null,749]
[750,null,null,null,null,null,null,null,750]
[751,null,null,null,null,null,null,null,751]
[752,null,null,null,null,null,null,null,752]
[753,null,null,null,null,null,null,null,753]
[754,null,null,null,null,null,null,null,754]
[755,null,null,null,null,null,null,null,755]
[756,null,null,null,null,null,null,null,756]
[757,null,null,null,null,null,null,null,757]
[758,null,null,null,null,null,null,null,758]
[759,null,null,null,null,null,null,null,759]
[760,null,null,null,null,null,null,null,760]
[761,null,null,null,null,null,null,null,761]
[762,null,null,null,null,null,null,null,762]
[763,null,null,null,null,null,null,null,763]
[764,null,null,null,null,null,null,null,764]
[765,null,null,null,null,null,null,null,765]
[766,null,null,null,null,null,null,null,766]
[767,null,null,null,null,null,null,null,767]
[768,null,null,null,null,null,null,null,768]
[769,null,null,null,null,null,null,null,769]
[770,null,null,null,null,null,null,null,770]
[771,null,null,null,null,null,null,null,771]
[772,null,null,null,null,null,null,null,772]
[773,null,null,null,null,null,null,null,773]
[774,null,null,null,null,null,null,null,774]
[775,null,null,null,null,null,null,null,775]
[776,null,null,null,null,null,null,null,776]
[777,null,null,null,null,null,null,null,777]
[778,null,null,null,null,null,null,null,778]
[779,null,null,null,null,null,null,null,779]
[780,null,null,null,null,null,null,null,780]
[781,null,null,null,null,null,null,null,781]
[782,null,null,null,null,null,null,null,782]
[783,null,null,null,null,null,null,null,783]
[784,null,null,null,null,null,null,null,784]
[785,null,null,null,null,null,null,null,785]
[786,null,null,null,null,null,null,null,786]
[787,null,null,null,null,null,null,null,787]
[788,null,null,null,null,null,null,null,788]
[789,null,null,null,null,null,null,null,789]
[790,null,null,null,null,null,null,null,790]
[791,null,null,null,null,null,null,null,791]
[792,null,null,null,null,null,null,null,792]
[793,null,null,null,null,null,null,null,793]
[794,null,null,null,null,null,null,null,794]
[795,null,null,null,null,null,null,null,795]
[796,null,null,null,null,null,null,null,796]
[797,null,null,null,null,null,null,null,797]
[798,null,null,null,null,null,null,null,798]
[799,null,null,null,null,null,null,null,799]
[800,null,null,null,null,null,null,null,800]
[801,null,null,null,null,null,null,null,801]
[802,null,null,null,null,null,null,null,802]
[803,null,null,null,null,null,null,null,803]
[804,null,null,null,null,null,null,null,804]
[805,null,null,null,null,null,null,null,805]
[806,null,null,null,null,null,null,null,806]
[807,null,null,null,null,null,null,null,807]
[808,null,null,null,null,null,null,null,808]
[809,null,null,null,null,null,null,null,809]
[810,null,null,null,null,null,null,null,810]
[811,null,null,null,null,null,null,null,811]
[812,null,null,null,null,null,null,null,812]
[813,null,null,null,null,null,null,null,813]
[814,null,null,null,null,null,null,null,814]
[815,null,null,null,null,null,null,null,815]
[816,null,null,null,null,null,null,null,816]
[817,null,null,null,null,null,null,null,817]
[818,null,null,null,null,null,null,null,818]
[819,null,null,null,null,null,null,null,819]
[820,null,null,null,null,null,null,null,820]
[821,null,null,null,null,null,null,null,821]
[822,null,null,null,null,null,null,null,822]
[823,null,null,null,null,null,null,null,823]
[824,null,null,null,null,null,null,null,824]
[825,null,null,null,null,null,null,null,825]
[826,null,null,null,null,null,null,null,826]
[827,null,null,null,null,null,null,null,827]
[828,null,null,null,null,null,null,null,828]
[829,null,null,null,null,null,null,null,829]
[830,null,null,null,null,null,null,null,830]
[831,null,null,null,null,null,null,null,831]
[832,null,null,null,null,null,null,null,832]
[833,null,null,null,null,null,null,null,833]
[834,null,null,null,null,null,null,null,834]
[835,null,null,null,null,null,null,null,835]
[836,null,null,null,null,null,null,null,836]
[837,null,null,null,null,null,null,null,837]
[838,null,null,null,null,null,null,null,838]
[839,null,null,null,null,null,null,null,839]
[840,null,null,null,null,null,null,null,840]
[841,null,null,null,null,null,null,null,841]
[842,null,null,null,null,null,null,null,842]
[843,null,null,null,null,null,null,null,843]
[844,null,null,null,null,null,null,null,844]
[845,null,null,null,null,null,null,null,845]
[846,null,null,null,null,null,null,null,846]
[847,null,null,null,null,null,null,null,847]
[848,null,null,null,null,null,null,null,848]
[849,null,null,null,null,null,null,null,849]
[850,null,null,null,null,null,null,null,850]
[851,null,null,null,null,null,null,null,851]
[852,null,null,null,null,null,null,null,852]
[853,null,null,null,null,null,null,null,853]
[854,null,null,null,null,null,null,null,854]
[855,null,null,null,null,null,null,null,855]
[856,null,null,null,null,null,null,null,856]
[857,null,null,null,null,null,null,null,857]
[858,null,null,null,null,null,null,null,858]
[859,null,null,null,null,null,null,null,859]
[860,null,null,null,null,null,null,null,860]
[861,null,null,null,null,null,null,null,861]
[862,null,null,null,null,null,null,null,862]
[863,null,null,null,null,null,null,null,863]
[864,null,null,null,null,null,null,null,864]
[865,null,null,null,null,null,null,null,865]
[866,null,null,null,null,null,null,null,866]
[867,null,null,null,null,null,null,null,867]
[868,null,null,null,null,null,null,null,868]
[869,null,null,null,null,null,null,null,869]
[870,null,null,null,null,null,null,null,870]
[871,null,null,null,null,null,null,null,871]
[872,null,null,null,null,null,null,null,872]
[873,null,null,null,null,null,null,null,873]
[874,null,null,null,null,null,null,null,874]
[875,null,null,null,null,null,null,null,875]
[876,null,null,null,null,null,null,null,876]
[877,null,null,null,null,null,null,null,877]
[878,null,null,null,null,null,null,null,878]
[879,null,null,null,null,null,null,null,879]
[880,null,null,null,null,null,null,null,880]
[881,null,null,null,null,null,null,null,881]
[882,null,null,null,null,null,null,null,882]
[883,null,null,null,null,null,null,null,883]
[884,null,null,null,null,null,null,null,884]
[885,null,null,null,null,null,null,null,885]
[886,null,null,null,null,null,null,null,886]
[887,null,null,null,null,null,null,null,887]
[888,null,null,null,null,null,null,null,888]
[889,null,null,null,null,null,null,null,889]
[890,null,null,null,null,null,null,null,890]
[891,null,null,null,null,null,null,null,891]
[892,null,null,null,null,null,null,null,892]
[893,null,null,null,null,null,null,null,893]
[894,null,null,null,null,null,null,null,894]
[895,null,null,null,null,null,null,null,895]
[896,null,null,null,null,null,null,null,896]
[897,null,null,null,null,null,null,null,897]
[898,null,null,null,null,null,null,null,898]
[899,null,null,null,null,null,null,null,899]
[900,null,null,null,null,null,null,null,900]
[901,null,null,null,null,null,null,null,901]
[902,null,null,null,null,null,null,null,902]
[903,null,null,null,null,null,null,null,903]
[904,null,null,null,null,null,null,null,904]
[905,null,null,null,null,null,null,null,905]
[906,null,null,null,null,null,null,null,906]
[907,null,null,null,null,null,null,null,907]
[908,null,null,null,null,null,null,null,908]
[909,null,null,null,null,null,null,null,909]
[910,null,null,null,null,null,null,null,910]
[911,null,null,null,null,null,null,null,911]
[912,null,null,null,null,null,null,null,912]
[913,null,null,null,null,null,null,null,913]
[914,null,null,null,null,null,null,null,914]
[915,null,null,null,null,null,null,null,915]
[916,null,null,null,null,null,null,null,916]
[917,null,null,null,null,null,null,null,917]
[918,null,null,null,null,null,null,null,918]
[919,null,null,null,null,null,null,null,919]
[920,null,null,null,null,null,null,null,920]
[921,null,null,null,null,null,null,null,921]
[922,null,null,null,null,null,null,null,922]
[923,null,null,null,null,null,null,null,923]
[924,null,null,null,null,null,null,null,924]
[925,null,null,null,null,null,null,null,925]
[926,null,null,null,null,null,null,null,926]
[927,null,null,null,null,null,null,null,927]
[928,null,null,null,null,null,null,null,928]
[929,null,null,null,null,null,null,null,929]
[930,null,null,null,null,null,null,null,930]
[931,null,null,null,null,null,null,null,931]
[932,null,null,null,null,null,null,null,932]
[933,null,null,null,null,null,null,null,933]
[934,null,null,null,null,null,null,null,934]
[935,null,null,null,null,null,null,null,935]
[936,null,null,null,null,null,null,null,936]
[937,null,null,null,null,null,null,null,937]
[938,null,null,null,null,null,null,null,938]
[939,null,null,null,null,null,null,null,939]
[940,null,null,null,null,null,null,null,940]
[941,null,null,null,null,null,null,null,941]
[942,null,null,null,null,null,null,null,942]
[943,null,null,null,null,null,null,null,943]
[944,null,null,null,null,null,null,null,944]
[945,null,null,null,null,null,null,null,945]
[946,null,null,null,null,null,null,null,946]
[947,null,null,null,null,null,null,null,947]
[948,null,null,null,null,null,null,null,948]
[949,null,null,null,null,null,null,null,949]
[950,null,null,null,null,null,null,null,950]
[951,null,null,null,null,null,null,null,951]
[952,null,null,null,null,null,null,null,952]
[953,null,null,null,null,null,null,null,953]
[954,null,null,null,null,null,null,null,954]
[955,null,null,null,null,null,null,null,955]
[956,null,null,null,null,null,null,null,956]
[957,null,null,null,null,null,null,null,957]
[958,null,null,null,null,null,null,null,958]
[959,null,null,null,null,null,null,null,959]
[960,null,null,null,null,null,null,null,960]
[961,null,null,null,null,null,null,null,961]
[962,null,null,null,null,null,null,null,962]
[963,null,null,null,null,null,null,null,963]
[964,null,null,null,null,null,null,null,964]
[965,null,null,null,null,null,null,null,965]
[966,null,null,null,null,null,null,null,966]
[967,null,null,null,null,null,null,null,967]
[968,null,null,null,null,null,null,null,968]
[969,null,null,null,null,null,null,null,969]
[970,null,null,null,null,null,null,null,970]
[971,null,null,null,null,null,null,null,971]
[972,null,null,null,null,null,null,null,972]
[973,null,null,null,null,null,null,null,973]
[974,null,null,null,null,null,null,null,974]
[975,null,null,null,null,null,null,null,975]
[976,null,null,null,null,null,null,null,976]
[977,null,null,null,null,null,null,null,977]
[978,null,null,null,null,null,null,null,978]
[979,null,null,null,null,null,null,null,979]
[980,null,null,null,null,null,null,null,980]
[981,null,null,null,null,null,null,null,981]
[982,null,null,null,null,null,null,null,982]
[983,null,null,null,null,null,null,null,983]
[984,null,null,null,null,null,null,null,984]
[985,null,null,null,null,null,null,null,985]
[986,null,null,null,null,null,null,null,986]
[987,null,null,null,null,null,null,null,987]
[988,null,null,null,null,null,null,null,988]
[989,null,null,null,null,null,null,null,989]
[990,null,null,null,null,null,null,null,990]
[991,null,null,null,null,null,null,null,991]
[992,null,null,null,null,null,null,null,992]
[993,null,null,null,null,null,null,null,993]
[994,null,null,null,null,null,null,null,994]
[995,null,null,null,null,null,null,null,995]
[996,null,null,null,null,null,null,null,996]
[997,null,null,null,null,null,null,null,997]
[998,null,null,null,null,null,null,null,998]
[999,null,null,null,null,null,null,null,999]
[1000,null,null,null,null,null,null,null,1000]